fUSD/lending_fUSD_20250108
["ID","MTS","AMOUNT","RATE_DAILY","PERIOD"]
[348132510,1736349042826,-867.59,0.00010157,2]
[348132512,1736349042838,-824.65,0.00010157,2]
[348132514,1736349042849,-1139.85,0.00010157,2]
[348132516,1736349042860,-1719.33,0.00010157,2]
[348132518,1736349042871,-635.6,0.00010157,2]
[348132521,1736349042883,-500.0,0.00010157,2]
[348132523,1736349042894,-1933.87,0.00010157,2]
[348132525,1736349042905,-3085.15,0.00010157,2]
[348132527,1736349042916,-963.79,0.00010157,2]
[348132529,1736349042927,-500.0,0.00010157,2]
[348132532,1736349042938,-1516.5,0.00010157,2]
[348132534,1736349042949,-592.06,0.00010157,2]
[348132536,1736349042960,-1435.2,0.00010157,2]
[348132538,1736349042973,-1121.6,0.00010157,2]
[348132540,1736349042983,-622.93,0.00010157,2]
[348132542,1736349042995,-816.26,0.00010157,2]
[348132545,1736349043006,-2446.41,0.00010157,2]
[348132547,1736349043018,-1353.2,0.00010157,2]
[348132549,1736349043030,-966.64,0.00010157,2]
[348132551,1736349043041,-500.0,0.00010157,2]
[348132554,1736349043052,-500.0,0.00010157,2]
[348132556,1736349043064,-1581.87,0.00010157,2]
[348132558,1736349043075,-500.0,0.00010158,2]
[348132560,1736349043086,-500.0,0.00010158,2]
[348132562,1736349043097,-500.0,0.00010158,2]
[348132565,1736349043108,-545.82,0.00010158,2]
[348132567,1736349043119,-500.0,0.00010158,2]
[348132569,1736349043131,-500.0,0.00010158,2]
[348132572,1736349043142,-511.28,0.00010158,2]
[348132574,1736349043153,-500.0,0.00010158,2]
[348132577,1736349043164,-500.0,0.00010158,2]
[348132579,1736349043177,-500.0,0.00010158,2]
[348132581,1736349043188,-500.0,0.00010158,2]
[348132583,1736349043198,-1432.7,0.00010158,2]
[348132585,1736349043210,-500.0,0.00010158,2]
[348132587,1736349043222,-527.56,0.00010158,2]
[348132590,1736349043235,-500.0,0.00010158,2]
[348132592,1736349043246,-500.0,0.00010158,2]
[348132594,1736349043257,-500.0,0.00010158,2]
[348132596,1736349043268,-286.61646076,0.00010158,2]
[348132599,1736349043279,-500.0,0.00010158,2]
[348132601,1736349043290,-500.0,0.00010158,2]
[348132603,1736349043302,-515.6310258,0.00010158,2]
[348132605,1736349043313,-1129.83,0.00010158,2]
[348132607,1736349043324,-710.52,0.00010158,2]
[348132610,1736349043336,-500.0,0.00010158,2]
[348132612,1736349043347,-577.49,0.00010158,2]
[348132614,1736349043359,-637.10980868,0.00010158,2]
[348132616,1736349043370,-735.73,0.00010158,2]
[348132618,1736349043381,-500.0,0.00010158,2]
[348132620,1736349043392,-500.0,0.00010158,2]
[348132623,1736349043403,-308.59797235,0.00010158,2]
[348132624,1736349043414,-350.05,0.00010158,2]
[348132625,1736349043426,-500.0,0.00010158,2]
[348132626,1736349043438,-788.75,0.00010158,2]
[348132627,1736349043449,-500.0,0.00010158,2]
[348132628,1736349043460,-500.0,0.00010158,2]
[348132629,1736349043474,-651.89,0.00010158,2]
[348132631,1736349043485,-500.0,0.00010158,2]
[348132632,1736349043496,-500.0,0.00010158,2]
[348132633,1736349043508,-572.85,0.00010158,2]
[348132634,1736349043518,-555.85,0.00010158,2]
[348132636,1736349043529,-500.0,0.00010158,2]
[348132638,1736349043540,-500.0,0.00010158,2]
[348132640,1736349043551,-500.0,0.00010158,2]
[348132641,1736349043563,-500.0,0.00010158,2]
[348132642,1736349043573,-500.0,0.00010158,2]
[348132643,1736349043585,-500.0,0.00010158,2]
[348132644,1736349043597,-500.0,0.00010158,2]
[348132645,1736349043608,-500.0,0.00010158,2]
[348132646,1736349043622,-500.0,0.00010158,2]
[348132647,1736349043634,-500.0,0.00010158,2]
[348132648,1736349043646,-392.92040733,0.00010158,2]
[348132649,1736349043657,-535.98,0.00010158,2]
[348132650,1736349043668,-500.0,0.00010158,2]
[348132651,1736349043680,-500.0,0.00010158,2]
[348132652,1736349043693,-500.0,0.00010158,2]
[348132653,1736349043704,-500.0,0.00010158,2]
[348132654,1736349043715,-500.0,0.00010158,2]
[348132655,1736349043729,-500.0,0.00010158,2]
[348132656,1736349043741,-751.03,0.00010158,2]
[348132657,1736349043755,-500.0,0.00010158,2]
[348132658,1736349043767,-500.0,0.00010158,2]
[348132659,1736349043779,-500.0,0.00010158,2]
[348132660,1736349043791,-500.0,0.00010158,2]
[348132661,1736349043802,-351.34397911,0.00010158,2]
[348132662,1736349043816,-500.0,0.00010158,2]
[348132663,1736349043828,-714.42,0.00010158,2]
[348132664,1736349043839,-500.0,0.00010158,2]
[348132665,1736349043851,-500.0,0.00010158,2]
[348132666,1736349043862,-500.0,0.00010158,2]
[348132667,1736349043874,-500.0,0.00010158,2]
[348132668,1736349043885,-500.0,0.00010158,2]
[348132669,1736349043897,-500.0,0.00010158,2]
[348132670,1736349043908,-500.0,0.00010158,2]
[348132671,1736349043920,-1917.71,0.00010158,2]
[348132672,1736349043931,-500.0,0.00010158,2]
[348132673,1736349043944,-500.0,0.00010158,2]
[348132674,1736349043956,-500.0,0.00010158,2]
[348132675,1736349043968,-3686.07,0.00010158,2]
[348132676,1736349043981,-500.0,0.00010158,2]
[348132677,1736349043993,-500.0,0.00010158,2]
[348132678,1736349044005,-500.0,0.00010158,2]
[348132681,1736349044017,-500.0,0.00010158,2]
[348132682,1736349044029,-500.0,0.00010158,2]
[348132683,1736349044041,-500.0,0.00010158,2]
[348132684,1736349044054,-500.0,0.00010158,2]
[348132685,1736349044066,-500.0,0.00010158,2]
[348132686,1736349044079,-500.0,0.00010158,2]
[348132687,1736349044091,-311.43480326,0.00010158,2]
[348132688,1736349044103,-500.0,0.00010158,2]
[348132689,1736349044115,-500.0,0.00010158,2]
[348132690,1736349044127,-500.0,0.00010158,2]
[348132691,1736349044138,-500.0,0.00010158,2]
[348132692,1736349044432,-3390.06,0.00010158,2]
[348132694,1736349044454,-500.0,0.00010158,2]
[348132695,1736349044464,-500.0,0.00010158,2]
[348132696,1736349044475,-500.0,0.00010158,2]
[348132697,1736349044485,-500.0,0.00010158,2]
[348132698,1736349044494,-500.0,0.00010158,2]
[348132699,1736349044504,-500.0,0.00010158,2]
[348132700,1736349044514,-500.0,0.00010158,2]
[348132701,1736349044523,-500.0,0.00010158,2]
[348132702,1736349044533,-621.31,0.00010158,2]
[348132703,1736349044543,-2650.65,0.00010158,2]
[348132704,1736349044552,-500.0,0.00010158,2]
[348132705,1736349044562,-500.0,0.00010158,2]
[348132706,1736349044571,-517.67,0.00010158,2]
[348132707,1736349044580,-500.0,0.00010158,2]
[348132708,1736349044595,-902.92,0.00010158,2]
[348132709,1736349044605,-500.0,0.00010158,2]
[348132710,1736349044614,-500.0,0.00010158,2]
[348132711,1736349044624,-500.0,0.00010158,2]
[348132712,1736349044636,-500.0,0.00010158,2]
[348132714,1736349044646,-500.0,0.00010158,2]
[348132716,1736349044656,-500.0,0.00010158,2]
[348132718,1736349044667,-3156.02,0.00010158,2]
[348132720,1736349044676,-500.0,0.00010158,2]
[348132722,1736349044686,-500.0,0.00010158,2]
[348132724,1736349044695,-500.0,0.00010158,2]
[348132726,1736349044704,-500.0,0.00010158,2]
[348132728,1736349044714,-500.0,0.00010158,2]
[348132730,1736349044726,-500.0,0.00010158,2]
[348132732,1736349044736,-503.7760981,0.00010158,2]
[348132734,1736349044745,-500.0,0.00010158,2]
[348132736,1736349044757,-642.86,0.00010158,2]
[348132738,1736349044768,-500.0,0.00010158,2]
[348132740,1736349044779,-500.0,0.00010158,2]
[348132742,1736349044788,-500.0,0.00010158,2]
[348132744,1736349044799,-500.0,0.00010158,2]
[348132746,1736349044809,-500.0,0.00010158,2]
[348132748,1736349044819,-500.0,0.00010158,2]
[348132750,1736349044829,-500.0,0.00010158,2]
[348132752,1736349044839,-709.58,0.00010158,2]
[348132754,1736349044850,-500.0,0.00010158,2]
[348132756,1736349044859,-500.0,0.00010158,7]
[348132758,1736349044869,-500.0,0.00010158,2]
[348132760,1736349044878,-500.0,0.00010158,2]
[348132762,1736349044888,-3452.4286,0.00010159,2]
[348132764,1736349044897,-1000.0,0.00010159,2]
[348132766,1736349044907,-738.09335615,0.00010167,2]
[348132768,1736349044917,-3416.011,0.0001018,2]
[348132770,1736349044927,-154.235,0.0001018,2]
[348132772,1736349044937,-738.09335615,0.00010183,2]
[348132774,1736349044946,-2674.1344,0.000102,2]
[348132776,1736349044956,-205.60199953,0.000102,2]
[348132778,1736349044966,-161.05129516,0.000102,2]
[348132780,1736349044978,-3000.0,0.000102,2]
[348132782,1736349044987,-738.09335615,0.000102,2]
[348132784,1736349044997,-264.3775785,0.000102,2]
[348132786,1736349045007,-164.00794109,0.000102,2]
[348132788,1736349045018,-150.0,0.00010217,2]
[348132790,1736349045027,-1267.0,0.00010217,2]
[348132792,1736349045037,-2015.0,0.00010217,2]
[348132794,1736349045046,-566.0,0.00010217,2]
[348132796,1736349045055,-150.0,0.00010217,2]
[348132798,1736349045065,-634.0,0.00010217,2]
[348132800,1736349045075,-1860.0,0.00010217,2]
[348132802,1736349045085,-916.0,0.00010217,2]
[348132804,1736349045094,-819.0,0.00010217,2]
[348132806,1736349045103,-1258.0,0.00010217,2]
[348132808,1736349045112,-3776.0,0.00010217,2]
[348132810,1736349045122,-537.0,0.00010217,2]
[348132812,1736349045131,-3976.0,0.00010217,2]
[348132814,1736349045141,-3895.0,0.00010217,2]
[348132816,1736349045150,-150.0,0.00010217,2]
[348132818,1736349045160,-1173.0,0.00010217,2]
[348132820,1736349045169,-1103.0,0.00010217,2]
[348132822,1736349045179,-500.0,0.00010258,2]
[348132824,1736349045188,-500.0,0.00010258,2]
[348132826,1736349045197,-500.0,0.00010258,2]
[348132828,1736349045207,-500.0,0.00010258,2]
[348132830,1736349045216,-500.0,0.00010258,2]
[348132832,1736349045228,-500.0,0.00010258,2]
[348132834,1736349045237,-500.0,0.00010258,2]
[348132836,1736349045246,-500.0,0.00010258,2]
[348132838,1736349045256,-500.0,0.00010258,2]
[348132840,1736349045265,-500.0,0.00010258,2]
[348132842,1736349045275,-638.94,0.00010258,2]
[348132844,1736349045284,-775.08,0.00010258,2]
[348132846,1736349045293,-500.0,0.00010258,2]
[348132848,1736349045303,-500.0,0.00010258,2]
[348132849,1736349045312,-500.0,0.00010258,2]
[348132850,1736349045322,-873.19,0.00010258,2]
[348132851,1736349045332,-500.0,0.00010258,2]
[348132852,1736349045342,-598.51,0.00010258,2]
[348132853,1736349045351,-500.0,0.00010258,2]
[348132854,1736349045360,-777.0,0.00010258,2]
[348132855,1736349045369,-851.02,0.00010258,2]
[348132856,1736349045378,-500.0,0.00010258,2]
[348132858,1736349045388,-500.0,0.00010258,2]
[348132860,1736349045397,-500.0,0.00010258,2]
[348132862,1736349045406,-500.0,0.00010258,2]
[348132864,1736349045416,-500.0,0.00010258,2]
[348132866,1736349045425,-500.0,0.00010258,2]
[348132868,1736349045434,-500.0,0.00010258,2]
[348132870,1736349045443,-500.0,0.00010258,2]
[348132872,1736349045453,-500.0,0.00010258,2]
[348132874,1736349045462,-500.0,0.00010258,2]
[348132876,1736349045474,-500.0,0.00010258,2]
[348132878,1736349045483,-630.25,0.00010258,2]
[348132880,1736349045494,-500.0,0.00010258,2]
[348132882,1736349045503,-500.0,0.00010258,2]
[348132883,1736349045512,-616.38,0.00010258,2]
[348132885,1736349045522,-500.0,0.00010258,2]
[348132888,1736349045531,-500.0,0.00010258,2]
[348132890,1736349045541,-985.65,0.00010258,2]
[348132891,1736349045550,-500.0,0.00010258,2]
[348132894,1736349045559,-744.19,0.00010258,2]
[348132895,1736349045569,-811.38,0.00010258,2]
[348132897,1736349045578,-500.0,0.00010258,2]
[348132899,1736349045588,-500.0,0.00010258,2]
[348132901,1736349045598,-500.0,0.00010258,2]
[348132903,1736349045608,-500.0,0.00010258,2]
[348132905,1736349045618,-500.0,0.00010259,2]
[348132907,1736349045627,-500.0,0.00010259,2]
[348132910,1736349045638,-500.0,0.00010259,2]
[348132911,1736349045647,-500.0,0.00010259,2]
[348132913,1736349045656,-2633.32,0.00010259,2]
[348132915,1736349045665,-500.0,0.00010259,2]
[348132917,1736349045674,-500.0,0.00010259,2]
[348132920,1736349045684,-1212.18,0.00010259,2]
[348132922,1736349045693,-4771.31,0.00010259,2]
[348132923,1736349045702,-471.411506,0.00010259,2]
[348132925,1736349045712,-500.0,0.00010259,2]
[348132927,1736349045723,-3890.61,0.00010259,2]
[348132929,1736349045732,-500.0,0.00010259,2]
[348132931,1736349045741,-500.0,0.00010259,2]
[348132933,1736349045752,-1830.34,0.00010259,2]
[348132935,1736349045762,-500.0,0.00010259,2]
[348132937,1736349045772,-3855.11,0.00010259,2]
[348132939,1736349045782,-1812.63,0.00010259,2]
[348132941,1736349045791,-1014.64,0.00010259,2]
[348132943,1736349045800,-603.76,0.00010259,2]
[348132945,1736349045809,-500.0,0.00010259,2]
[348132947,1736349045818,-932.35,0.00010259,2]
[348132949,1736349045827,-1549.08,0.00010259,2]
[348132951,1736349045836,-1007.78,0.00010259,2]
[348132953,1736349045845,-1568.67,0.00010259,2]
[348132955,1736349045855,-1014.64,0.0001026,2]
[348132957,1736349045864,-1438.04,0.0001026,2]
[348132959,1736349045873,-500.0,0.0001026,2]
[348132961,1736349045882,-1344.71,0.0001026,2]
[348132963,1736349045892,-2949.85,0.0001026,2]
[348132965,1736349045901,-1660.4,0.0001026,2]
[348132967,1736349045910,-4059.98,0.0001026,2]
[348132969,1736349045919,-151.0,0.00010261,2]
[348132971,1736349045929,-987.85,0.00010261,2]
[348132973,1736349045939,-2296.67,0.00010268,2]
[348132975,1736349045947,-1407.44,0.00010268,2]
[348132977,1736349045956,-944.42,0.00010268,2]
[348132979,1736349045965,-500.0,0.00010268,2]
[348132981,1736349045977,-1229.65,0.00010268,2]
[348132983,1736349045986,-3008.65,0.00010268,2]
[348132985,1736349045995,-1476.15,0.00010269,2]
[348132987,1736349046005,-763.26,0.00010269,2]
[348132989,1736349046015,-628.14,0.00010269,2]
[348132991,1736349046024,-610.14,0.00010269,2]
[348132993,1736349046033,-500.0,0.00010269,2]
[348132995,1736349046042,-915.32,0.00010269,2]
[348132997,1736349046052,-500.0,0.00010269,2]
[348132999,1736349046061,-722.85,0.00010269,2]
[348133001,1736349046070,-1592.84,0.00010269,2]
[348133003,1736349046079,-500.0,0.00010269,2]
[348133005,1736349046089,-848.12,0.00010269,2]
[348133007,1736349046098,-1659.06,0.00010269,2]
[348133009,1736349046107,-1489.01,0.00010269,2]
[348133011,1736349046116,-506.6661902,0.00010269,2]
[348133013,1736349046126,-1000.0,0.00010269,2]
[348133015,1736349046135,-3191.21,0.00010269,2]
[348133017,1736349046145,-933.34,0.00010269,2]
[348133019,1736349046154,-7532.55,0.00010269,2]
[348133021,1736349046164,-500.0,0.00010269,2]
[348133023,1736349046174,-500.47973773,0.00010269,2]
[348133025,1736349046183,-2156.58,0.00010269,2]
[348133027,1736349046193,-702.98,0.00010269,2]
[348133029,1736349046203,-2185.02,0.00010269,2]
[348133031,1736349046212,-568.99,0.00010269,2]
[348133033,1736349046222,-3720.21,0.00010269,2]
[348133035,1736349046232,-500.0,0.00010269,2]
[348133038,1736349046242,-822.66,0.00010269,2]
[348133040,1736349046251,-1170.63,0.00010269,2]
[348133042,1736349046260,-1467.53,0.00010269,2]
[348133044,1736349046270,-884.17,0.00010269,2]
[348133046,1736349046279,-500.0,0.00010273,2]
[348133048,1736349046290,-500.0,0.00010273,2]
[348133051,1736349046299,-166.08508211,0.00010273,2]
[348133053,1736349046308,-500.63128303,0.00010273,2]
[348133055,1736349046317,-151.80099953,0.00010273,2]
[348133057,1736349046326,-229.68481333,0.00010274,2]
[348133059,1736349046335,-150.0,0.00010274,2]
[348133061,1736349046345,-150.0,0.00010274,2]
[348133063,1736349046354,-52919.0,0.00010274,2]
[348133065,1736349046363,-2714.18013136,0.00010298,3]
[348133067,1736349046375,-500.0,0.00010299,2]
[348133069,1736349046384,-500.0,0.00010299,2]
[348133071,1736349046393,-500.0,0.00010299,2]
[348133073,1736349046403,-500.0,0.00010299,2]
[348133075,1736349046412,-500.0,0.00010299,2]
[348133077,1736349046421,-500.0,0.00010299,2]
[348133079,1736349046430,-500.0,0.00010299,2]
[348133081,1736349046439,-500.0,0.00010299,2]
[348133083,1736349046449,-500.0,0.00010299,2]
[348133085,1736349046459,-500.0,0.00010299,2]
[348133087,1736349046468,-500.0,0.00010299,2]
[348133089,1736349046479,-500.0,0.00010299,2]
[348133091,1736349046489,-500.0,0.00010299,2]
[348133093,1736349046498,-500.0,0.00010299,2]
[348133095,1736349046507,-500.0,0.00010299,2]
[348133097,1736349046517,-500.0,0.00010299,2]
[348133099,1736349046526,-500.0,0.00010299,2]
[348133101,1736349046536,-362.04298319,0.00010299,2]
[348133103,1736349046545,-1310.0,0.000103,2]
[348133105,1736349046555,-4842723.62929615,0.000103,2]
[348133107,1736349046564,-300.0,0.000103,2]
[348133109,1736349046573,-6584.08905837,0.000103,2]
[348133112,1736349046585,-151.0,0.000103,2]
[348133114,1736349046596,-10134.91281466,0.000103,2]
[348133116,1736349046606,-251.8,0.000103,2]
[348133117,1736349046615,-151.0,0.000103,2]
[348133120,1736349046624,-151.0,0.000103,2]
[348133122,1736349046636,-204.13309621,0.000103,2]
[348133124,1736349046646,-21039.6675149,0.000103,2]
[348133126,1736349046656,-151.0,0.000103,2]
[348133128,1736349046666,-1488.4347102,0.000103,2]
[348133130,1736349046676,-151.0,0.000103,2]
[348133131,1736349046688,-7160.9898197,0.000103,2]
[348133134,1736349046697,-154.076544,0.000103,2]
[348133135,1736349046707,-6515.8646082,0.000103,2]
[348133138,1736349046717,-1264.0833065,0.000103,2]
[348133140,1736349046729,-1821.307448,0.000103,2]
[348133142,1736349046738,-1957.0871727,0.000103,2]
[348133144,1736349046749,-161.05129516,0.000104,2]
[348133146,1736349046760,-579.29,0.00010413,2]
[348133148,1736349046769,-642.57,0.00010419,2]
[348133150,1736349046779,-1399.42,0.00010419,2]
[348133151,1736349046789,-2084.31,0.00010419,2]
[348133152,1736349046799,-1385.09,0.00010419,2]
[348133153,1736349046809,-1093.48,0.00010419,2]
[348133154,1736349046819,-1097.572277,0.00010419,2]
[348133155,1736349046829,-1319.919364,0.00010419,2]
[348133156,1736349046839,-3771.05,0.00010419,2]
[348133157,1736349046849,-500.0,0.0001043,2]
[348133158,1736349046859,-500.0,0.0001043,2]
[348133159,1736349046869,-500.0,0.00010431,2]
[348133160,1736349046879,-1910.15,0.00010431,2]
[348133161,1736349046888,-577.27,0.00010431,2]
[348133162,1736349046898,-2017.44,0.00010431,2]
[348133163,1736349046908,-4797.45,0.00010431,2]
[348133164,1736349046917,-500.0,0.00010431,2]
[348133165,1736349046928,-867.59,0.00010431,2]
[348133166,1736349046938,-824.65,0.00010431,2]
[348133167,1736349046948,-1139.85,0.00010431,2]
[348133168,1736349046958,-1719.33,0.00010431,2]
[348133169,1736349046968,-635.6,0.00010431,2]
[348133170,1736349046980,-500.0,0.00010431,2]
[348133171,1736349046991,-1933.87,0.00010431,2]
[348133172,1736349047001,-3085.15,0.00010431,2]
[348133173,1736349047011,-963.79,0.00010431,2]
[348133174,1736349047021,-500.0,0.00010431,2]
[348133175,1736349047031,-1516.5,0.00010431,2]
[348133176,1736349047041,-592.06,0.00010431,2]
[348133177,1736349047051,-1435.2,0.00010431,2]
[348133178,1736349047061,-1121.6,0.00010431,2]
[348133179,1736349047071,-622.93,0.00010431,2]
[348133180,1736349047081,-816.26,0.00010431,2]
[348133181,1736349047091,-2446.41,0.00010431,2]
[348133182,1736349047101,-1353.2,0.00010431,2]
[348133183,1736349047111,-966.64,0.00010431,2]
[348133184,1736349047122,-500.0,0.00010431,2]
[348133185,1736349047133,-500.0,0.00010431,2]
[348133186,1736349047143,-1581.87,0.00010431,2]
[348133187,1736349047153,-500.0,0.00010432,2]
[348133188,1736349047164,-500.0,0.00010432,2]
[348133189,1736349047174,-500.0,0.00010432,2]
[348133190,1736349047185,-545.82,0.00010432,2]
[348133191,1736349047194,-500.0,0.00010432,2]
[348133192,1736349047204,-500.0,0.00010432,2]
[348133193,1736349047215,-511.28,0.00010432,2]
[348133194,1736349047226,-500.0,0.00010432,2]
[348133195,1736349047236,-500.0,0.00010432,2]
[348133196,1736349047246,-500.0,0.00010432,2]
[348133197,1736349047257,-500.0,0.00010432,2]
[348133198,1736349047267,-1432.7,0.00010432,2]
[348133199,1736349047278,-465.0102758,0.00010432,2]
[348133200,1736349047288,-527.56,0.00010432,2]
[348133201,1736349047298,-500.0,0.00010432,2]
[348133202,1736349047308,-500.0,0.00010432,2]
[348133203,1736349047318,-500.0,0.00010432,2]
[348133204,1736349047328,-500.0,0.00010432,2]
[348133205,1736349047338,-500.0,0.00010432,2]
[348133206,1736349047348,-1129.83,0.00010432,2]
[348133207,1736349047358,-710.52,0.00010432,2]
[348133208,1736349047368,-500.0,0.00010432,2]
[348133209,1736349047378,-577.49,0.00010432,2]
[348133210,1736349047536,-735.73,0.00010432,2]
[348133211,1736349047546,-500.0,0.00010432,2]
[348133212,1736349047556,-500.0,0.00010432,2]
[348133213,1736349047566,-500.0,0.00010432,2]
[348133214,1736349047576,-788.75,0.00010432,2]
[348133215,1736349047586,-500.0,0.00010432,2]
[348133216,1736349047596,-500.0,0.00010432,2]
[348133217,1736349047608,-651.89,0.00010432,2]
[348133218,1736349047618,-500.0,0.00010432,2]
[348133219,1736349047627,-500.0,0.00010432,2]
[348133220,1736349047636,-572.85,0.00010432,2]
[348133221,1736349047647,-555.85,0.00010432,2]
[348133222,1736349047656,-500.0,0.00010432,2]
[348133223,1736349047666,-500.0,0.00010432,2]
[348133224,1736349047676,-500.0,0.00010432,2]
[348133225,1736349047686,-500.0,0.00010432,2]
[348133226,1736349047695,-377.90794116,0.00010432,2]
[348133227,1736349047705,-500.0,0.00010432,2]
[348133228,1736349047714,-637.75491881,0.00010432,2]
[348133229,1736349047725,-500.0,0.00010432,2]
[348133230,1736349047735,-500.0,0.00010432,2]
[348133231,1736349047745,-535.98,0.00010432,2]
[348133232,1736349047756,-500.0,0.00010432,2]
[348133233,1736349047767,-500.0,0.00010432,2]
[348133234,1736349047776,-500.0,0.00010432,2]
[348133235,1736349047786,-751.03,0.00010432,2]
[348133236,1736349047797,-500.0,0.00010432,2]
[348133237,1736349047807,-500.0,0.00010432,2]
[348133238,1736349047817,-500.0,0.00010432,2]
[348133239,1736349047826,-500.0,0.00010432,2]
[348133240,1736349047836,-714.42,0.00010432,2]
[348133241,1736349047846,-409.23442375,0.00010432,2]
[348133242,1736349047856,-500.0,0.00010432,2]
[348133243,1736349047865,-500.0,0.00010432,2]
[348133244,1736349047875,-500.0,0.00010432,2]
[348133245,1736349047885,-500.0,0.00010432,2]
[348133246,1736349047895,-500.0,0.00010432,2]
[348133247,1736349047905,-1917.71,0.00010432,2]
[348133248,1736349047914,-500.0,0.00010432,2]
[348133249,1736349047924,-3686.07,0.00010432,2]
[348133250,1736349047933,-500.0,0.00010432,2]
[348133251,1736349047943,-500.0,0.00010432,2]
[348133252,1736349047953,-500.0,0.00010432,2]
[348133253,1736349047962,-500.0,0.00010432,2]
[348133254,1736349047974,-500.0,0.00010432,2]
[348133255,1736349047983,-3390.06,0.00010432,2]
[348133256,1736349047993,-500.0,0.00010432,2]
[348133257,1736349048003,-500.0,0.00010432,2]
[348133258,1736349048013,-207.84080646,0.00010432,2]
[348133259,1736349048024,-2650.65,0.00010432,2]
[348133260,1736349048034,-500.0,0.00010432,2]
[348133261,1736349048044,-500.0,0.00010432,2]
[348133262,1736349048054,-517.67,0.00010432,2]
[348133263,1736349048065,-902.92,0.00010432,2]
[348133264,1736349048074,-500.0,0.00010432,2]
[348133265,1736349048084,-500.0,0.00010432,2]
[348133266,1736349048095,-3156.02,0.00010432,2]
[348133267,1736349048105,-500.0,0.00010432,2]
[348133268,1736349048115,-500.0,0.00010432,2]
[348133269,1736349048125,-500.0,0.00010432,2]
[348133270,1736349048136,-500.0,0.00010432,2]
[348133271,1736349048146,-642.86,0.00010432,2]
[348133272,1736349048157,-500.0,0.00010432,2]
[348133273,1736349048167,-500.0,0.00010432,2]
[348133274,1736349048178,-500.0,0.00010432,2]
[348133275,1736349048189,-709.58,0.00010432,2]
[348133276,1736349048199,-500.0,0.00010432,7]
[348133277,1736349048209,-500.0,0.00010432,2]
[348133278,1736349048219,-500.0,0.00010436,2]
[348133279,1736349048232,-7275868.60092016,0.000105,5]
[348133280,1736349048243,-150.0,0.000105,2]
[348133281,1736349048254,-556.49612062,0.000105,2]
[348133282,1736349048264,-150.0,0.000105,2]
[348133283,1736349048274,-150.0,0.000105,2]
[348133284,1736349048285,-150.0,0.000105,2]
[348133285,1736349048295,-4876.62559044,0.000105,2]
[348133286,1736349048305,-71354.18800507,0.000105,2]
[348133287,1736349048315,-9929.84959916,0.000105,2]
[348133288,1736349048325,-150.0,0.000105,2]
[348133289,1736349048335,-7173.62238616,0.000105,2]
[348133290,1736349048344,-1152.0357105,0.000105,2]
[348133291,1736349048354,-218.0,0.000105,2]
[348133292,1736349048363,-151.0,0.000105,2]
[348133293,1736349048374,-204.13309621,0.000105,2]
[348133294,1736349048383,-151.0,0.000105,2]